fUSD/lending_fUSD_20250519
["ID","MTS","AMOUNT","RATE_DAILY","PERIOD"]
[361581207,1747623051750,-400.0,0.00013698,2]
[361581208,1747623051760,-400.0,0.00013698,2]
[361581209,1747623051770,-1634.97,0.00013698,2]
[361581210,1747623051779,-446.93,0.00013698,2]
[361581211,1747623051787,-400.34836304,0.00013698,2]
[361581212,1747623051798,-568.07,0.00013698,2]
[361581213,1747623051806,-400.0,0.00013698,2]
[361581214,1747623051817,-400.0,0.00013698,2]
[361581215,1747623051826,-403.00669421,0.00013698,2]
[361581216,1747623051836,-474.6,0.00013698,2]
[361581217,1747623051845,-2195.43,0.00013698,2]
[361581218,1747623051854,-400.39106701,0.00013698,2]
[361581219,1747623051863,-400.0,0.00013698,2]
[361581220,1747623051872,-400.0,0.00013698,2]
[361581221,1747623051882,-400.0,0.00013698,2]
[361581222,1747623051891,-543.39,0.00013698,2]
[361581223,1747623051900,-401.44021596,0.00013698,2]
[361581224,1747623051909,-400.0,0.00013698,2]
[361581225,1747623051919,-400.0,0.00013698,2]
[361581226,1747623051928,-593.38,0.00013698,2]
[361581227,1747623051937,-400.0,0.00013698,2]
[361581228,1747623051945,-465.36767359,0.00013698,2]
[361581229,1747623051954,-400.0,0.00013698,2]
[361581230,1747623051965,-400.0,0.00013698,2]
[361581231,1747623051975,-580.8,0.00013698,2]
[361581232,1747623051984,-213.62919074,0.00013698,2]
[361581233,1747623051994,-400.0,0.00013698,2]
[361581234,1747623052002,-400.0,0.00013698,2]
[361581235,1747623052012,-756.23,0.00013698,2]
[361581236,1747623052021,-870.49,0.00013698,2]
[361581237,1747623052030,-855.18,0.00013698,2]
[361581238,1747623052039,-400.0,0.00013698,2]
[361581239,1747623052049,-400.0,0.00013698,2]
[361581240,1747623052058,-1090.23,0.00013698,2]
[361581241,1747623052069,-355.35166662,0.00013698,2]
[361581242,1747623052078,-400.0,0.00013698,2]
[361581243,1747623052087,-790.89,0.00013698,2]
[361581244,1747623052096,-2571.3,0.00013698,2]
[361581245,1747623052105,-401.81179241,0.00013698,2]
[361581246,1747623052115,-407.56858252,0.00013698,2]
[361581247,1747623052124,-400.0,0.00013698,2]
[361581248,1747623052133,-637.8,0.00013699,2]
[361581249,1747623052148,-200.0,0.00013699,2]
[361581250,1747623052157,-1500.0,0.00013699,2]
[361581251,1747623052167,-3580.69172061,0.00013699,2]
[361581252,1747623052176,-1003.15017395,0.00013699,2]
[361581253,1747623052185,-351.2330672,0.00013699,2]
[361581254,1747623052194,-500.0,0.00013699,2]
[361581255,1747623052203,-276.45938353,0.00013699,2]
[361581256,1747623052212,-245.64,0.000137,2]
[361581257,1747623052221,-153.19833198,0.00013708,2]
[361581258,1747623052230,-203.95184858,0.00013725,2]
[361581259,1747623052240,-3580.69172061,0.00013732,2]
[361581260,1747623052249,-1003.15017395,0.00013732,2]
[361581261,1747623052258,-3580.69172061,0.00013766,2]
[361581262,1747623052267,-1003.15017395,0.00013766,2]
[361581263,1747623052277,-182.67961877,0.00013798,2]
[361581264,1747623052286,-3580.69172061,0.00013799,2]
[361581265,1747623052295,-1003.15017395,0.00013799,2]
[361581266,1747623052305,-1904.9757,0.000138,2]
[361581267,1747623052314,-1622.73684,0.000138,2]
[361581268,1747623052323,-500.0,0.00013806,2]
[361581269,1747623052332,-500.0,0.00013807,2]
[361581270,1747623052341,-500.0,0.00013807,2]
[361581271,1747623052350,-500.0,0.00013807,2]
[361581272,1747623052359,-500.0,0.00013807,2]
[361581273,1747623052369,-500.0,0.00013807,2]
[361581274,1747623052378,-500.0,0.00013807,2]
[361581275,1747623052387,-337.03,0.00013807,2]
[361581276,1747623052396,-500.0,0.00013807,2]
[361581277,1747623052405,-500.0,0.00013807,2]
[361581278,1747623052414,-500.0,0.00013807,2]
[361581279,1747623052424,-687.86,0.00013807,2]
[361581280,1747623052433,-687.86,0.00013807,2]
[361581281,1747623052442,-1323.8,0.00013807,2]
[361581282,1747623052451,-1323.8,0.00013807,2]
[361581283,1747623052460,-1323.8,0.00013807,2]
[361581284,1747623052469,-153.380713,0.00013808,2]
[361581285,1747623052479,-151.0,0.00013808,2]
[361581286,1747623052489,-151.0,0.00013808,2]
[361581287,1747623052498,-400.0,0.00013808,2]
[361581288,1747623052507,-509.99445656,0.00013808,2]
[361581289,1747623052517,-400.0,0.00013808,2]
[361581290,1747623052526,-500.0,0.00013808,2]
[361581291,1747623052534,-400.0,0.00013808,2]
[361581292,1747623052543,-3653.814201,0.00013808,2]
[361581293,1747623052552,-1290.17406,0.00013808,2]
[361581294,1747623052561,-438.59519348,0.00013808,2]
[361581295,1747623052570,-400.0,0.00013808,2]
[361581296,1747623052579,-400.0,0.00013808,2]
[361581297,1747623052588,-764.11,0.00013808,2]
[361581298,1747623052597,-400.0,0.00013808,2]
[361581299,1747623052606,-1045.976411,0.00013808,2]
[361581300,1747623052615,-400.0,0.00013808,2]
[361581301,1747623052624,-400.0,0.00013808,2]
[361581302,1747623052633,-400.0,0.00013808,2]
[361581303,1747623052641,-403.13578141,0.00013808,2]
[361581304,1747623052651,-567.34,0.00013808,2]
[361581305,1747623052659,-400.0,0.00013808,2]
[361581306,1747623052668,-400.0,0.00013808,2]
[361581307,1747623052677,-400.0,0.00013808,2]
[361581308,1747623052686,-443.08900334,0.00013808,2]
[361581309,1747623052695,-400.0,0.00013808,2]
[361581310,1747623052703,-400.0,0.00013808,2]
[361581311,1747623052712,-400.0,0.00013808,2]
[361581312,1747623052721,-400.0,0.00013808,2]
[361581313,1747623052731,-401.62,0.00013808,2]
[361581314,1747623052740,-400.0,0.00013808,2]
[361581315,1747623052749,-400.0,0.00013808,2]
[361581316,1747623052758,-400.0,0.00013808,2]
[361581317,1747623052767,-400.0,0.00013808,2]
[361581318,1747623052776,-400.0,0.00013808,2]
[361581319,1747623052785,-478.85,0.00013808,2]
[361581320,1747623052794,-400.0,0.00013808,2]
[361581321,1747623052803,-400.0,0.00013808,2]
[361581322,1747623052812,-400.0,0.00013808,2]
[361581323,1747623052822,-495.91,0.00013808,2]
[361581324,1747623052832,-400.0,0.00013808,2]
[361581325,1747623052841,-400.0,0.00013808,2]
[361581326,1747623052850,-400.0,0.00013808,2]
[361581327,1747623052859,-543.14022503,0.00013808,2]
[361581328,1747623052868,-274.69372345,0.00013808,2]
[361581329,1747623052877,-400.0,0.00013808,2]
[361581330,1747623052886,-529.33,0.00013808,2]
[361581331,1747623052895,-400.0,0.00013808,2]
[361581332,1747623052905,-401.34737286,0.00013808,2]
[361581333,1747623052914,-400.0,0.00013808,2]
[361581334,1747623052923,-405.83359317,0.00013808,2]
[361581335,1747623052932,-237.0009885,0.00013808,2]
[361581336,1747623052941,-400.0,0.00013808,2]
[361581337,1747623052950,-400.0,0.00013808,2]
[361581338,1747623052960,-400.0,0.00013808,2]
[361581339,1747623052973,-258.9199018,0.00013808,2]
[361581340,1747623052982,-400.0,0.00013808,2]
[361581341,1747623052991,-400.0,0.00013808,2]
[361581342,1747623053000,-400.0,0.00013808,2]
[361581343,1747623053010,-400.0,0.00013808,2]
[361581344,1747623053019,-400.0,0.00013808,2]
[361581345,1747623053027,-400.0,0.00013808,2]
[361581346,1747623053036,-1000.0,0.00013808,2]
[361581347,1747623053045,-450.0,0.00013808,2]
[361581348,1747623053054,-400.0,0.00013808,2]
[361581349,1747623053064,-450.35,0.00013808,2]
[361581350,1747623053073,-400.0,0.00013808,2]
[361581351,1747623053082,-400.0,0.00013808,2]
[361581352,1747623053091,-400.0,0.00013808,2]
[361581353,1747623053100,-400.0,0.00013808,2]
[361581354,1747623053109,-400.0,0.00013808,2]
[361581355,1747623053118,-400.0,0.00013808,2]
[361581356,1747623053126,-400.0,0.00013808,2]
[361581357,1747623053135,-400.0,0.00013808,2]
[361581358,1747623053144,-400.0,0.00013808,2]
[361581359,1747623053154,-403.10499183,0.00013808,2]
[361581360,1747623053162,-400.0,0.00013808,2]
[361581361,1747623053172,-400.0,0.00013808,2]
[361581362,1747623053181,-514.65743464,0.00013808,2]
[361581363,1747623053190,-400.0,0.00013808,2]
[361581364,1747623053200,-400.0,0.00013808,2]
[361581365,1747623053210,-405.23124854,0.00013808,2]
[361581366,1747623053219,-391.0,0.00013808,2]
[361581367,1747623053229,-400.0,0.00013808,2]
[361581368,1747623053238,-183.35294053,0.00013808,2]
[361581369,1747623053247,-400.0,0.00013808,2]
[361581370,1747623053256,-586.99,0.00013808,2]
[361581371,1747623053265,-400.0,0.00013808,2]
[361581372,1747623053274,-400.0,0.00013808,2]
[361581373,1747623053284,-582.81,0.00013808,2]
[361581374,1747623053293,-500.0,0.00013808,2]
[361581375,1747623053302,-511.63176397,0.00013808,2]
[361581376,1747623053312,-400.0,0.00013808,2]
[361581377,1747623053323,-396.50945981,0.00013808,2]
[361581378,1747623053332,-430.3,0.00013808,2]
[361581379,1747623053341,-400.0,0.00013808,2]
[361581380,1747623053351,-400.0,0.00013808,2]
[361581381,1747623053359,-400.0,0.00013808,2]
[361581382,1747623053369,-400.0,0.00013808,2]
[361581383,1747623053378,-400.0,0.00013808,2]
[361581384,1747623053387,-400.0,0.00013808,2]
[361581385,1747623053396,-400.0,0.00013808,2]
[361581386,1747623053406,-400.0,0.00013808,2]
[361581387,1747623053415,-400.0,0.00013808,2]
[361581388,1747623053424,-400.0,0.00013808,2]
[361581389,1747623053433,-400.0,0.00013808,2]
[361581390,1747623053443,-400.0,0.00013808,2]
[361581391,1747623053452,-400.0,0.00013808,2]
[361581392,1747623053462,-557.79,0.00013808,2]
[361581393,1747623053472,-462.37034215,0.00013808,2]
[361581394,1747623053481,-400.0,0.00013808,2]
[361581395,1747623053491,-400.0,0.00013808,2]
[361581396,1747623053501,-400.0,0.00013808,2]
[361581397,1747623053511,-401.17383171,0.00013808,2]
[361581398,1747623053522,-400.0,0.00013808,2]
[361581399,1747623053530,-400.0,0.00013808,2]
[361581400,1747623053539,-400.0,0.00013808,2]
[361581401,1747623053548,-400.0,0.00013808,2]
[361581402,1747623053557,-719.99,0.00013808,2]
[361581403,1747623053568,-352.03425991,0.00013808,2]
[361581404,1747623053577,-400.0,0.00013808,2]
[361581405,1747623053586,-400.0,0.00013808,2]
[361581406,1747623053596,-400.0,0.00013808,2]
[361581407,1747623053605,-500.0,0.00013808,2]
[361581408,1747623053614,-400.0,0.00013808,2]
[361581409,1747623053623,-400.0,0.00013808,2]
[361581410,1747623053634,-400.0,0.00013808,2]
[361581411,1747623053643,-400.0,0.00013808,2]
[361581412,1747623053654,-400.0,0.00013808,2]
[361581413,1747623053665,-400.0,0.00013808,2]
[361581414,1747623053674,-400.0,0.00013808,2]
[361581415,1747623053683,-405.0235899,0.00013808,2]
[361581416,1747623053693,-400.0,0.00013808,2]
[361581417,1747623053704,-400.0,0.00013808,2]
[361581418,1747623053713,-400.0,0.00013808,2]
[361581419,1747623053722,-400.0,0.00013808,2]
[361581420,1747623053732,-400.0,0.00013808,2]
[361581421,1747623053742,-400.0,0.00013808,2]
[361581422,1747623053752,-668.16,0.00013808,2]
[361581423,1747623053761,-400.0,0.00013808,2]
[361581424,1747623053771,-400.0,0.00013808,2]
[361581425,1747623053889,-400.0,0.00013808,2]
[361581426,1747623053904,-400.0,0.00013808,2]
[361581427,1747623053914,-400.0,0.00013808,2]
[361581428,1747623053923,-406.4459924,0.00013808,2]
[361581429,1747623053933,-556.62,0.00013808,2]
[361581430,1747623053942,-537.72,0.00013808,2]
[361581431,1747623053952,-744.3,0.00013808,2]
[361581432,1747623053961,-400.0,0.00013808,2]
[361581433,1747623053973,-400.0,0.00013808,2]
[361581434,1747623053982,-400.0,0.00013808,2]
[361581435,1747623053991,-400.0,0.00013808,2]
[361581436,1747623054000,-400.0,0.00013808,2]
[361581437,1747623054010,-400.0,0.00013808,2]
[361581438,1747623054020,-565.63,0.00013808,2]
[361581439,1747623054029,-400.0,0.00013808,2]
[361581440,1747623054039,-400.0,0.00013808,2]
[361581441,1747623054048,-400.0,0.00013808,2]
[361581442,1747623054058,-400.0,0.00013808,2]
[361581443,1747623054070,-400.0,0.00013808,2]
[361581444,1747623054079,-400.0,0.00013808,2]
[361581445,1747623054089,-400.0,0.00013808,2]
[361581446,1747623054098,-400.0,0.00013808,2]
[361581447,1747623054107,-400.0,0.00013808,2]
[361581448,1747623054117,-400.0,0.00013808,2]
[361581449,1747623054126,-400.0,0.00013808,2]
[361581450,1747623054135,-400.0,0.00013808,2]
[361581451,1747623054145,-400.0,0.00013808,2]
[361581452,1747623054154,-163.8242143,0.00013808,2]
[361581453,1747623054163,-400.63435672,0.00013808,2]
[361581454,1747623054172,-400.0,0.00013808,2]
[361581455,1747623054182,-489.21586008,0.00013808,2]
[361581456,1747623054191,-400.0,0.00013808,2]
[361581457,1747623054200,-400.0,0.00013808,2]
[361581458,1747623054209,-541.29,0.00013808,2]
[361581459,1747623054219,-400.0,0.00013808,2]
[361581460,1747623054229,-400.0,0.00013808,2]
[361581461,1747623054238,-188.91490901,0.00013808,2]
[361581462,1747623054247,-400.0,0.00013808,2]
[361581463,1747623054257,-400.0,0.00013808,2]
[361581464,1747623054268,-403.9952537,0.00013808,2]
[361581465,1747623054278,-489.66,0.00013808,2]
[361581466,1747623054287,-400.0,0.00013808,2]
[361581467,1747623054296,-400.0,0.00013808,2]
[361581468,1747623054306,-400.0,0.00013808,2]
[361581469,1747623054316,-400.0,0.00013808,2]
[361581470,1747623054326,-400.0,0.00013808,2]
[361581471,1747623054335,-400.0,0.00013808,2]
[361581472,1747623054344,-724.44,0.00013808,2]
[361581473,1747623054354,-400.0,0.00013808,2]
[361581474,1747623054363,-530.18,0.00013808,2]
[361581475,1747623054373,-400.0,0.00013808,2]
[361581476,1747623054382,-400.0,0.00013808,2]
[361581477,1747623054391,-400.0,0.00013808,2]
[361581478,1747623054400,-987.94,0.00013808,2]
[361581479,1747623054410,-406.61940126,0.00013808,2]
[361581480,1747623054419,-400.0,0.00013808,2]
[361581481,1747623054428,-400.0,0.00013808,2]
[361581482,1747623054438,-890.69,0.00013808,2]
[361581483,1747623054447,-400.81043563,0.00013808,2]
[361581484,1747623054457,-400.0,0.00013808,2]
[361581485,1747623054466,-400.0,0.00013808,2]
[361581486,1747623054475,-400.0,0.00013808,2]
[361581487,1747623054485,-400.0,0.00013808,2]
[361581488,1747623054496,-400.0,0.00013808,2]
[361581489,1747623054506,-768.16,0.00013808,2]
[361581490,1747623054515,-454.91,0.00013808,2]
[361581491,1747623054524,-400.0,0.00013808,2]
[361581492,1747623054534,-400.0,0.00013808,2]
[361581493,1747623054543,-400.0,0.00013808,2]
[361581494,1747623054553,-400.0,0.00013808,2]
[361581495,1747623054562,-607.06,0.00013808,2]
[361581496,1747623054571,-632.44,0.00013808,2]
[361581497,1747623054581,-400.0,0.00013808,2]
[361581498,1747623054590,-1070.31,0.00013808,2]
[361581499,1747623054599,-400.0,0.00013808,2]
[361581500,1747623054608,-715.85,0.00013808,2]
[361581501,1747623054617,-400.0,0.00013808,2]
[361581502,1747623054627,-400.0,0.00013808,2]
[361581503,1747623054636,-522.83,0.00013808,2]
[361581504,1747623054645,-791.21,0.00013808,2]
[361581505,1747623054654,-754.24,0.00013808,2]
[361581506,1747623054663,-832.11,0.00013808,2]
[361581507,1747623054672,-400.0,0.00013808,2]
[361581508,1747623054682,-400.0,0.00013808,2]
[361581509,1747623054691,-400.0,0.00013808,2]
[361581510,1747623054700,-1195.11,0.00013808,2]
[361581511,1747623054709,-400.0,0.00013808,2]
[361581512,1747623054719,-400.0,0.00013808,2]
[361581513,1747623054728,-400.0,0.00013808,2]
[361581514,1747623054737,-403.16,0.00013808,2]
[361581515,1747623054746,-527.03,0.00013808,2]
[361581516,1747623054755,-423.46,0.00013808,2]
[361581517,1747623054765,-400.0,0.00013808,2]
[361581518,1747623054774,-498.94,0.00013808,2]
[361581519,1747623054784,-400.0,0.00013808,2]
[361581520,1747623054794,-1110.94,0.00013808,2]
[361581521,1747623054803,-400.0,0.00013808,2]
[361581522,1747623054813,-810.62,0.00013808,2]
[361581523,1747623054822,-400.0,0.00013808,2]
[361581524,1747623054831,-543.18,0.00013808,2]
[361581525,1747623054840,-400.0,0.00013808,2]
[361581526,1747623054850,-400.0,0.00013808,2]
[361581527,1747623054859,-1418.91,0.00013808,2]
[361581528,1747623054868,-822.31,0.00013808,2]
[361581529,1747623054877,-866.95,0.00013808,2]
[361581530,1747623054887,-400.0,0.00013808,2]
[361581531,1747623054896,-588.09,0.00013808,2]
[361581532,1747623054910,-616.69,0.00013808,2]
[361581533,1747623054920,-658.95,0.00013808,2]
[361581534,1747623054929,-400.0,0.00013808,2]
[361581535,1747623054939,-611.23,0.00013808,2]
[361581536,1747623054948,-1048.59,0.00013808,2]
[361581537,1747623054958,-569.94,0.00013808,2]
[361581538,1747623054970,-400.0,0.00013808,2]
[361581539,1747623054980,-486.51,0.00013808,2]
[361581540,1747623054989,-400.0,0.00013808,2]
[361581541,1747623054999,-917.85,0.00013808,2]
[361581542,1747623055009,-489.25,0.00013808,2]
[361581543,1747623055018,-532.98,0.00013808,2]
[361581544,1747623055027,-768.93,0.00013808,2]
[361581545,1747623055037,-400.0,0.00013808,2]
[361581546,1747623055048,-1246.99,0.00013808,2]
[361581547,1747623055057,-477.65,0.00013808,2]
[361581548,1747623055068,-486.64,0.00013808,2]
[361581549,1747623055077,-400.0,0.00013808,2]
[361581550,1747623055087,-448.24,0.00013808,2]
[361581551,1747623055096,-654.72,0.00013808,2]
[361581552,1747623055106,-411.72807443,0.00013808,2]
[361581553,1747623055115,-517.77,0.00013808,2]
[361581554,1747623055124,-400.0,0.00013808,2]
[361581555,1747623055133,-427.63,0.00013808,2]
[361581556,1747623055142,-490.0,0.00013808,2]
[361581557,1747623055152,-400.0,0.00013808,2]
[361581558,1747623055161,-951.09,0.00013808,2]
[361581559,1747623055170,-446.88,0.00013808,2]
[361581560,1747623055180,-893.02,0.00013808,2]
[361581561,1747623055189,-400.0,0.00013808,2]
[361581562,1747623055198,-400.0,0.00013808,2]
[361581563,1747623055207,-723.93,0.00013808,2]
[361581564,1747623055217,-400.0,0.00013808,2]
[361581565,1747623055226,-606.7,0.00013808,2]
[361581566,1747623055235,-400.0,0.00013808,2]
[361581567,1747623055245,-777.47,0.00013808,2]
[361581568,1747623055254,-401.09969137,0.00013808,2]
[361581569,1747623055263,-400.0,0.00013808,2]
[361581570,1747623055273,-464.98,0.00013808,2]
[361581571,1747623055282,-408.66204469,0.00013808,2]
[361581572,1747623055292,-402.0663083,0.00013808,2]
[361581573,1747623055301,-501.45784222,0.00013808,2]
[361581574,1747623055310,-572.73,0.00013808,2]
[361581575,1747623055321,-476.26,0.00013808,2]
[361581576,1747623055331,-400.0,0.00013808,2]
[361581577,1747623055340,-400.0,0.00013808,2]
[361581578,1747623055349,-1307.16,0.00013808,2]
[361581579,1747623055359,-819.51,0.00013808,2]
[361581580,1747623055368,-400.0,0.00013808,2]
[361581581,1747623055378,-1229.58,0.00013808,2]
[361581582,1747623055387,-400.0,0.00013808,2]
[361581583,1747623055396,-400.0,0.00013808,2]
[361581584,1747623055406,-595.39,0.00013808,2]
[361581585,1747623055415,-402.29498778,0.00013808,2]
[361581586,1747623055424,-599.62,0.00013808,2]
[361581587,1747623055433,-704.56,0.00013808,2]
[361581588,1747623055442,-405.18,0.00013808,2]
[361581589,1747623055452,-803.15,0.00013808,2]
[361581590,1747623055461,-400.0,0.00013808,2]
[361581591,1747623055470,-400.0,0.00013808,2]
[361581592,1747623055479,-1231.44,0.00013808,2]
[361581593,1747623055489,-830.38,0.00013808,2]
[361581594,1747623055498,-598.88,0.00013808,2]
[361581595,1747623055508,-1242.33,0.00013808,2]
[361581596,1747623055518,-643.43,0.00013808,2]
[361581597,1747623055528,-400.0,0.00013808,2]
[361581598,1747623055538,-400.0,0.00013808,2]
[361581599,1747623055547,-615.84,0.00013808,2]
[361581600,1747623055557,-1129.35,0.00013808,2]
[361581601,1747623055566,-405.13263768,0.00013808,2]
[361581602,1747623055575,-509.06,0.00013808,2]
[361581603,1747623055584,-400.0,0.00013808,2]
[361581604,1747623055594,-400.0,0.00013808,2]
[361581605,1747623055603,-400.0,0.00013808,2]
[361581606,1747623055612,-509.68,0.00013808,2]
[361581607,1747623055623,-2309.65,0.00013808,2]
[361581608,1747623055633,-541.91,0.00013808,2]
[361581609,1747623055642,-400.0,0.00013808,2]
[361581610,1747623055652,-1559.31,0.00013808,2]
[361581611,1747623055662,-400.0,0.00013808,2]
[361581612,1747623055671,-400.0,0.00013808,2]
[361581613,1747623055680,-1519.6,0.00013808,2]
[361581614,1747623055689,-885.17,0.00013808,2]
[361581615,1747623055698,-400.0,0.00013808,2]
[361581616,1747623055708,-693.97,0.00013808,2]
[361581617,1747623055717,-1398.54,0.00013808,2]
[361581618,1747623055726,-467.24,0.00013808,2]
[361581619,1747623055735,-460.65,0.00013808,2]
[361581620,1747623055745,-553.34,0.00013808,2]
[361581621,1747623055754,-982.28,0.00013808,2]
[361581622,1747623055763,-400.0,0.00013808,2]
[361581623,1747623055772,-794.06,0.00013808,2]
[361581624,1747623055782,-611.77,0.00013808,2]
[361581625,1747623055791,-220.62202116,0.00013808,2]
[361581626,1747623055800,-440.88517072,0.00013808,2]
[361581627,1747623055809,-496.06,0.00013808,2]
[361581628,1747623055819,-1023.73,0.00013808,2]
[361581629,1747623055828,-400.0,0.00013808,2]
[361581630,1747623055837,-400.0,0.00013808,2]
[361581631,1747623055846,-1100.17,0.00013808,2]
[361581632,1747623055855,-400.0,0.00013808,2]
[361581633,1747623055865,-871.88,0.00013808,2]
[361581634,1747623055874,-400.0,0.00013808,2]
[361581635,1747623056168,-400.0,0.00013808,2]
[361581636,1747623056191,-615.34,0.00013808,2]
[361581637,1747623056201,-400.0,0.00013808,2]
[361581638,1747623056211,-400.0,0.00013808,2]
[361581639,1747623056220,-486.16758364,0.00013808,2]
[361581640,1747623056230,-1216.52,0.00013808,2]
[361581641,1747623056240,-400.0,0.00013808,2]
[361581642,1747623056249,-1191.65,0.00013808,2]
[361581643,1747623056258,-1267.17,0.00013808,2]
[361581644,1747623056269,-400.0,0.00013808,2]
[361581645,1747623056278,-1040.38,0.00013808,2]
[361581646,1747623056290,-1600.19,0.00013808,2]
[361581647,1747623056301,-400.0,0.00013808,2]
[361581648,1747623056311,-400.0,0.00013808,2]
[361581649,1747623056323,-400.0,0.00013808,2]
[361581650,1747623056333,-400.0,0.00013808,2]
[361581651,1747623056342,-400.0,0.00013808,2]
[361581652,1747623056352,-400.0,0.00013808,2]
[361581653,1747623056362,-400.0,0.00013808,2]
[361581654,1747623056375,-400.0,0.00013808,2]
[361581655,1747623056384,-693.88,0.00013808,2]
[361581656,1747623056393,-690.57,0.00013808,2]
[361581657,1747623056403,-943.64,0.00013808,2]
[361581658,1747623056414,-379.58648246,0.00013808,2]
[361581659,1747623056423,-425.96,0.00013808,2]
[361581660,1747623056433,-677.73,0.00013808,2]
[361581661,1747623056442,-461.2,0.00013808,2]
[361581662,1747623056452,-400.0,0.00013808,2]
[361581663,1747623056462,-400.0,0.00013808,2]
[361581664,1747623056471,-450.35,0.00013808,2]
[361581665,1747623056481,-400.0,0.00013808,2]
[361581666,1747623056491,-545.69,0.00013808,2]
[361581667,1747623056501,-400.0,0.00013808,2]
[361581668,1747623056511,-400.0,0.00013808,2]
[361581669,1747623056521,-400.0,0.00013808,2]
[361581670,1747623056531,-400.0,0.00013808,2]
[361581671,1747623056540,-400.0,0.00013808,2]
[361581672,1747623056550,-851.72,0.00013808,2]
[361581673,1747623056562,-401.33980176,0.00013808,2]
[361581674,1747623056573,-477.96,0.00013808,2]
[361581675,1747623056583,-400.0,0.00013808,2]
[361581676,1747623056593,-608.65,0.00013808,2]
[361581677,1747623056604,-400.0,0.00013808,2]
[361581678,1747623056616,-400.0,0.00013808,2]
[361581679,1747623056627,-400.0,0.00013808,2]
[361581680,1747623056637,-671.18,0.00013808,2]
[361581681,1747623056646,-1007.82,0.00013808,2]
[361581682,1747623056655,-400.0,0.00013808,2]
[361581683,1747623056665,-400.0,0.00013808,2]
[361581684,1747623056674,-400.0,0.00013808,2]
[361581685,1747623056685,-400.0,0.00013808,2]
[361581686,1747623056696,-400.0,0.00013808,2]
[361581687,1747623056707,-400.0,0.00013808,2]
[361581688,1747623056718,-1147.48,0.00013808,2]
[361581689,1747623056729,-832.17,0.00013808,2]
[361581690,1747623056738,-400.0,0.00013808,2]
[361581691,1747623056748,-400.0,0.00013808,2]
[361581692,1747623056758,-400.0,0.00013808,2]
[361581693,1747623056768,-491.3,0.00013808,2]
[361581694,1747623056778,-264.92949387,0.00013808,2]
[361581695,1747623056788,-762.24,0.00013808,2]
[361581696,1747623056798,-548.93,0.00013808,2]
[361581697,1747623056808,-400.0,0.00013808,2]
[361581698,1747623056817,-400.0,0.00013808,2]
[361581699,1747623056827,-729.82,0.00013808,2]
[361581700,1747623056838,-626.74,0.00013808,2]
[361581701,1747623056848,-400.0,0.00013808,2]
[361581702,1747623056857,-400.0,0.00013808,2]
[361581703,1747623056867,-596.03,0.00013808,2]
[361581704,1747623056876,-400.0,0.00013808,2]
[361581705,1747623056885,-991.02,0.00013808,2]
[361581706,1747623056895,-400.0,0.00013808,2]